bitfinex-derivatives/quotes_BNBF0:USTF0_20250116
["timestamp","ask_amount","ask_price","bid_price","bid_amount"]
[1737044492479,1.0445634,712.02,710.49,1.2270995]
[1737044492787,1.0445634,712.02,710.5,1.48558358]
[1737044492979,1.0445634,712.26,705.06,2.84296377]
[1737044492980,1.0445634,712.04,710.51,1.2270995]
[1737044493184,1.0445634,712.04,710.52,1.2270995]
[1737044493381,1.0445634,712.04,710.53,1.2270995]
[1737044493583,1.0445634,712.04,710.54,1.2270995]
[1737044493783,1.0445634,712.04,710.55,1.2270995]
[1737044493984,1.0445634,712.04,710.56,1.2270995]
[1737044494184,1.0445634,712.04,710.57,1.2270995]
[1737044494485,1.0445634,712.06,710.58,1.2270995]
[1737044494678,1.0445634,712.06,710.59,1.2270995]
[1737044494880,1.0445634,712.06,710.6,1.2270995]
[1737044495186,1.0445634,712.06,710.61,1.2270995]
[1737044495382,1.0445634,712.06,710.62,1.2270995]
[1737044495579,1.0445634,712.06,710.63,1.2270995]
[1737044495778,1.0445634,712.0,710.64,1.2270995]
[1737044495985,1.0445634,712.0,710.65,1.2270995]
[1737044496287,0.28090282,711.99,710.66,1.2270995]
[1737044496487,0.28090282,711.99,710.67,1.2270995]
[1737044496686,0.28090282,711.99,710.68,1.2270995]
[1737044496887,0.28090282,711.99,710.69,1.2270995]
[1737044497087,0.28090282,711.99,710.7,1.2270995]
[1737044497285,0.28090282,711.99,710.71,1.2270995]
[1737044497482,0.28090282,711.99,710.72,1.2270995]
[1737044497685,0.28090282,711.99,710.73,1.48553337]
[1737044497887,0.28090282,711.99,710.74,1.48553337]
[1737044498082,0.28090282,711.99,709.8,1.0313995]
[1737044498083,0.28090282,711.99,710.75,1.2270995]
[1737044498388,0.28090282,711.99,710.76,1.2270995]
[1737044498689,0.28090282,711.99,710.77,1.2270995]
[1737044498989,0.28090282,711.99,710.78,1.48552687]
[1737044499188,0.28090282,711.99,710.16,1.0313995]
[1737044499189,0.28090282,711.99,710.79,1.48620537]
[1737044499389,0.28090282,711.99,710.8,1.48619223]
[1737044499687,0.28090282,711.99,710.81,1.48619223]
[1737044499882,0.28090282,711.99,710.82,1.48619223]
[1737044500085,0.28090282,711.99,710.83,1.227778]
[1737044500286,0.28090282,711.99,710.84,1.486172]
[1737044500487,0.28090282,711.99,710.85,1.486172]
[1737044500687,0.28090282,711.99,710.86,1.486172]
[1737044500988,0.28090282,711.99,707.47,5.12743903]
[1737044500989,0.28090282,711.99,710.87,1.22729967]
[1737044501291,0.28090282,711.99,710.88,1.22729967]
[1737044501482,0.28090282,711.99,710.89,1.22729967]
[1737044501681,0.28090282,711.99,710.9,1.22729967]
[1737044501886,0.28090282,711.99,710.91,1.22729967]
[1737044502087,0.28090282,711.99,710.92,1.22729967]
[1737044502288,0.28090282,711.99,710.93,1.22729967]
[1737044502487,0.28090282,711.99,710.94,1.22729967]
[1737044502788,0.28090282,711.99,710.95,1.22729967]
[1737044502982,0.28090282,711.99,710.96,1.22729967]
[1737044503183,0.28090282,711.99,710.97,1.22729967]
[1737044503489,0.28090282,711.99,710.98,1.22729967]
[1737044503684,0.28090282,711.99,710.99,1.22729967]
[1737044503888,0.28090282,711.99,711.0,1.22729967]
[1737044504088,0.28090282,711.99,711.01,1.22729967]
[1737044504287,0.28090282,711.99,711.02,1.22729967]
[1737044504486,0.28090282,711.99,711.03,1.22729967]
[1737044504689,0.28090282,711.99,710.26,1.02830439]
[1737044504885,0.28090282,711.99,710.27,1.22712688]
[1737044505090,0.28090282,711.99,710.28,1.22712688]
[1737044505392,0.28090282,711.99,710.29,1.22712688]
[1737044505593,0.28090282,711.99,710.3,1.22712688]
[1737044505891,0.28090282,711.99,709.95,1.02830439]
[1737044505892,0.28090282,711.99,710.31,1.48553866]
[1737044506087,0.28090282,711.99,710.32,1.48553866]
[1737044506287,0.28090282,711.99,710.33,2.07792178]
[1737044506490,0.28090282,711.99,710.34,2.07792178]
[1737044506692,0.28090282,711.99,710.35,2.07857098]
[1737044506892,0.28090282,711.99,703.95,4.99789898]
[1737044506893,0.28090282,711.99,710.36,2.07857098]
[1737044507193,0.28090282,711.99,710.37,2.07857098]
[1737044507385,0.28090282,711.99,710.38,3.49583889]
[1737044507692,0.28090282,711.99,710.39,2.07857098]
[1737044507892,0.28090282,711.99,710.4,2.07857098]
[1737044508089,0.28090282,711.99,710.41,2.07857098]
[1737044508295,0.28090282,711.99,710.42,2.07857098]
[1737044508491,0.28090282,711.99,710.43,2.0782361]
[1737044508692,0.28090282,711.99,710.44,2.0782361]
[1737044508893,0.28090282,711.99,710.45,2.0782361]
[1737044509088,0.28090282,711.99,710.46,2.0782361]
[1737044509289,0.28090282,711.99,710.47,2.07852673]
[1737044509491,0.28090282,711.99,710.48,2.07852673]
[1737044509795,0.28090282,711.99,710.49,2.07852673]
[1737044509988,0.28090282,711.99,710.5,2.07852673]
[1737044510193,0.28090282,711.99,710.51,2.07852673]
[1737044510397,0.28090282,711.99,710.52,2.07852673]
[1737044510595,0.28090282,711.99,710.53,2.07852673]
[1737044510795,0.28090282,711.99,710.54,2.07852673]
[1737044511092,0.28090282,711.99,710.55,1.48618554]
[1737044511296,0.28090282,711.99,710.56,1.22777608]
[1737044511493,0.28090282,711.99,710.57,1.48618273]
[1737044511793,0.28090282,711.99,710.58,1.48618273]
[1737044511994,0.28090282,711.99,710.42,1.02830439]
[1737044511995,0.28090282,711.99,710.59,1.48618273]
[1737044512197,0.28090282,711.99,710.6,1.48618273]
[1737044512394,0.28090282,711.99,710.61,1.48618273]
[1737044512589,0.28090282,711.99,710.62,1.48618273]
[1737044512799,0.28090282,711.99,710.63,1.48618273]
[1737044513097,0.28090282,711.99,710.64,1.48618273]
[1737044513298,0.28090282,711.99,710.65,1.48618273]
[1737044513499,0.28090282,711.99,710.66,1.48618273]
[1737044513693,0.28090282,711.99,710.67,1.48618273]
[1737044513897,0.28090282,711.99,710.68,1.48618273]
[1737044514090,0.28090282,711.99,710.69,1.48616191]
[1737044514297,0.28090282,711.99,710.7,1.22777608]
[1737044514496,0.28090282,711.99,710.71,1.48617664]
[1737044514691,0.28090282,711.99,710.72,1.48617664]
[1737044514897,0.28090282,711.99,710.73,1.48617664]
[1737044515100,0.28090282,711.99,710.24,1.02830439]
[1737044515101,0.28090282,711.99,710.74,1.48617664]
[1737044515401,0.28090282,711.99,710.75,1.48617664]
[1737044515698,0.28090282,711.99,710.51,1.02830439]
[1737044515699,0.28090282,711.99,710.76,1.48617664]
[1737044515903,0.28090282,711.99,710.77,1.48617664]
[1737044516104,0.28090282,711.99,710.78,1.48617664]
[1737044516306,0.28090282,711.99,710.79,1.48617664]
[1737044516499,0.28090282,711.99,710.8,1.48617664]
[1737044516704,0.28090282,711.99,710.81,1.48617664]
[1737044516903,0.28090282,711.99,710.82,1.48618012]
[1737044517102,0.28090282,711.99,710.83,1.48618012]
[1737044517406,0.28090282,711.99,710.49,1.02830439]
[1737044517407,0.28090282,711.99,710.84,1.48618012]
[1737044517603,1.32551662,711.99,710.85,1.22777608]
[1737044517905,1.32551662,711.99,710.86,1.22777608]
[1737044518104,1.32551662,711.99,710.87,1.22777608]
[1737044518301,1.32551662,711.99,710.88,1.22777608]
[1737044518508,1.0446138,711.96,710.89,1.22777608]
[1737044518809,1.0446138,711.96,710.9,1.22777608]
[1737044519001,1.0446138,711.96,710.91,1.22777608]
[1737044519310,0.28090282,711.99,710.92,1.22777608]
[1737044519311,1.0446138,711.95,710.92,1.22777608]
[1737044519607,1.0446138,711.95,710.93,1.22777608]
[1737044519807,1.0446138,711.95,710.94,1.22777608]
[1737044520002,1.46786927,711.94,710.95,1.22777608]
[1737044520202,1.46786927,711.94,710.96,0.47220252]
[1737044520403,1.46786927,711.94,710.97,1.22706781]
[1737044520608,1.0446138,711.87,710.98,0.47220252]
[1737044520809,1.0446138,711.87,710.99,0.47220252]
[1737044521109,1.0446138,711.87,711.0,0.47220252]
[1737044521308,1.0446138,711.87,711.01,0.47220252]
[1737044521506,1.0446138,711.87,711.02,0.47220252]
[1737044521707,1.0446138,711.85,711.03,0.47220252]
[1737044521906,1.0446138,711.85,711.04,0.47220252]
[1737044522105,1.0446138,711.85,711.05,0.47220252]
[1737044522305,1.0446138,711.85,711.06,0.47220252]
[1737044522609,1.0446138,711.85,711.07,0.47220252]
[1737044522802,1.0446138,711.85,710.34,1.02830439]
[1737044523002,1.0446138,711.78,710.4,1.02830439]
[1737044523311,1.0446138,711.78,710.41,1.76609484]
[1737044523511,1.0446138,711.78,710.42,1.48456728]
[1737044523809,1.0446138,711.78,710.43,1.48456728]
[1737044524005,1.0446138,711.78,710.44,1.48456728]
[1737044524211,1.0446138,711.78,710.45,1.48456728]
[1737044524511,1.0446138,711.74,710.46,2.07657797]
[1737044524711,1.0446138,711.74,710.47,1.4845306]
[1737044524912,1.0446138,711.74,710.48,1.4845306]
[1737044525210,1.0446138,711.74,710.49,1.48452837]
[1737044525413,1.0446138,711.74,710.5,1.48452837]
[1737044525604,1.0446138,711.86,710.54,1.02830439]
[1737044525804,1.0446138,711.86,710.55,1.48452837]
[1737044526006,1.0446138,711.86,710.56,1.48452837]
[1737044526211,1.0446138,711.86,710.57,1.48452837]
[1737044526413,1.0446138,711.88,710.58,1.48452837]
[1737044526611,1.0446138,711.88,710.59,1.48452837]
[1737044526812,1.0446138,711.88,710.6,1.48452837]
[1737044527007,1.0446138,711.88,710.61,1.4845724]
[1737044527208,1.0446138,711.88,710.62,1.48454439]
[1737044527507,1.0446138,711.88,710.41,0.28152756]
[1737044527508,1.0446138,711.92,710.65,1.02830439]
[1737044527713,1.0446138,711.92,710.66,1.48454439]
[1737044527911,1.0446138,711.92,710.67,1.48454439]
[1737044528215,1.0446138,711.92,710.68,1.48454439]
[1737044528513,1.0446138,711.89,710.69,0.73065775]
[1737044528712,1.0446138,711.89,710.7,1.4863083]
[1737044528908,1.0446138,711.89,710.71,1.4863083]
[1737044529110,1.0446138,711.89,710.72,1.22790118]
[1737044529314,1.0446138,711.89,710.73,1.22790118]
[1737044529612,1.0446138,711.89,710.74,1.22790118]
[1737044529815,1.0446138,711.74,710.75,1.22790118]
[1737044530009,1.0446138,711.74,710.76,1.22790118]
[1737044530205,1.0446138,711.74,710.77,1.48634939]
[1737044530409,1.0446138,711.74,710.78,1.48810751]
[1737044530613,1.0446138,711.82,710.79,1.2296593]
[1737044530812,1.0446138,711.82,710.8,1.48808319]
[1737044531009,1.0446138,711.82,710.81,1.2296593]
[1737044531312,1.0446138,711.82,710.82,1.2296593]
[1737044531513,1.0446138,711.82,710.83,1.2296593]
[1737044531709,1.0446138,711.82,710.84,1.2296593]
[1737044531905,0.28090282,711.99,710.85,1.2296593]
[1737044531906,1.0446138,711.77,710.85,1.2296593]
[1737044532112,1.0446138,711.77,710.86,1.2296593]
[1737044532314,1.0446138,711.77,710.6,1.02830439]
[1737044532315,1.0446138,711.77,710.87,1.48806124]
[1737044532515,1.0446138,711.77,710.88,1.2296593]
[1737044532815,1.0446138,711.77,710.89,1.2296593]
[1737044533014,0.28090282,711.99,710.41,1.30983195]
[1737044533015,1.0446138,711.86,710.9,1.2296593]
[1737044533314,1.0446138,711.86,710.91,1.2296593]
[1737044533614,1.0446138,711.86,710.92,1.2296593]
[1737044533816,1.0446138,711.86,710.93,1.2296593]
[1737044534014,1.0446138,711.86,710.94,1.2296593]
[1737044534311,1.0446138,711.82,710.95,1.2296593]
[1737044534514,1.0446138,711.82,710.96,1.2296593]
[1737044534817,1.0446138,711.82,710.97,1.2296593]
[1737044535115,1.0446138,711.82,710.98,1.2296593]
[1737044535415,0.28090282,711.99,710.41,1.30983195]
[1737044535416,1.0446138,711.87,710.99,1.2296593]
[1737044535617,1.0446138,711.87,711.0,1.2296593]
[1737044535820,1.0446138,711.87,711.01,1.2296593]
[1737044536117,1.0446138,711.87,710.41,0.28152756]
[1737044536118,1.0446138,711.88,711.02,1.2296593]
[1737044536318,1.0446138,711.88,711.03,1.2296593]
[1737044536618,1.0446138,711.88,711.04,1.2296593]
[1737044536818,1.0446138,711.88,711.05,1.2296593]
[1737044537117,1.0446138,711.88,711.06,1.2296593]
[1737044537322,1.0446138,711.86,711.07,1.2296593]
[1737044537511,1.0446138,711.86,711.08,1.2296593]
[1737044537714,1.0446138,711.86,711.09,1.2296593]
[1737044537911,1.0446138,711.86,711.1,1.2296593]
[1737044538119,1.0446138,711.86,711.11,1.2296593]
[1737044538318,1.0446138,711.86,711.12,1.2296593]
[1737044538519,1.32551662,711.99,711.13,1.2296593]
[1737044538815,1.32551662,711.99,711.14,1.2296593]
[1737044539020,1.32551662,711.99,711.15,1.2296593]
[1737044539221,1.32551662,711.99,711.16,1.2296593]
[1737044539425,0.28090282,711.99,711.17,1.2296593]
[1737044539617,0.28090282,711.99,711.18,1.2296593]
[1737044539822,0.28090282,711.99,711.19,1.2296593]
[1737044540121,0.28090282,711.99,711.2,1.2296593]
[1737044540318,0.28090282,711.99,711.21,1.2296593]
[1737044540525,0.28090282,711.99,710.41,0.28152756]
[1737044540526,0.28090282,711.99,711.22,1.2296593]
[1737044540723,1.0446138,712.24,711.23,1.2296593]
[1737044540922,1.0446138,712.24,711.24,1.2296593]
[1737044541123,1.0446138,712.24,711.25,1.2296593]
[1737044541324,1.0446138,712.24,711.26,1.2296593]
[1737044541524,1.0446138,712.17,711.27,1.2296593]
[1737044541725,1.0446138,712.17,710.8,1.02830439]
[1737044541726,1.0446138,712.17,711.28,1.2296593]
[1737044541919,1.0446138,712.17,711.29,1.2296593]
[1737044542127,1.0446138,712.17,711.3,1.2296593]
[1737044542427,1.0446138,712.17,711.31,1.2296593]
[1737044542621,1.0446138,712.17,711.32,1.2296593]
[1737044542820,1.0446138,712.17,711.33,1.2296593]
[1737044543126,1.0446138,712.17,711.34,1.2296593]
[1737044543328,1.0446138,712.17,711.35,1.2296593]
[1737044543527,1.0446138,712.17,711.36,1.2296593]
[1737044543727,1.0446138,712.17,711.37,1.2296593]
[1737044543930,1.0446138,712.19,711.38,1.2296593]
[1737044544130,1.0446138,712.19,710.58,1.02830439]
[1737044544131,1.0446138,712.19,711.39,1.2296593]
[1737044544327,1.0446138,712.19,711.4,1.2296593]
[1737044544628,1.0446138,712.19,711.41,1.2296593]
[1737044544828,1.0446138,712.27,711.42,1.2296593]
[1737044545027,1.0446138,712.27,711.43,1.2296593]
[1737044545329,1.0446138,712.27,711.44,1.2296593]
[1737044545526,1.0446138,712.27,710.67,1.02830439]
[1737044545527,0.28079633,712.26,711.45,1.2296593]
[1737044545724,0.28079633,712.26,711.46,1.2296593]
[1737044545923,0.28079633,712.26,711.47,1.2296593]
[1737044546124,0.28079633,712.26,711.48,1.2296593]
[1737044546324,0.28079633,712.26,711.49,1.2296593]
[1737044546530,0.28079633,712.26,711.5,1.2296593]
[1737044546831,0.28079633,712.26,711.51,1.2296593]
[1737044547026,0.28079633,712.26,711.52,1.2296593]
[1737044547227,0.28079633,712.26,711.53,1.22027002]
[1737044547428,0.28079633,712.26,711.54,1.22027002]
[1737044547626,0.28079633,712.26,711.55,1.22027002]
[1737044547832,0.28079633,712.26,711.56,1.22027002]
[1737044548033,0.28079633,712.26,711.57,1.22027002]
[1737044548227,0.28079633,712.26,711.58,1.22027002]
[1737044548431,0.28079633,712.26,710.94,1.02830439]
[1737044548432,0.28079633,712.26,711.59,1.22027002]
[1737044548732,0.28079633,712.26,711.6,1.22027002]
[1737044548933,0.28079633,712.26,711.61,1.22027002]
[1737044549232,0.28079633,712.26,711.62,1.22027002]
[1737044549426,0.28079633,712.26,711.63,1.22027002]
[1737044549624,0.28079633,712.26,711.64,1.22027002]
[1737044549828,1.0446138,712.56,711.65,1.22027002]
[1737044550026,1.0446138,712.56,711.66,0.46931569]
[1737044550229,1.0446138,712.56,711.67,0.46931569]
[1737044550434,1.0446138,712.6,711.68,0.46931569]
[1737044550733,1.0446138,712.6,711.69,0.46931569]
[1737044550927,1.0446138,712.6,710.82,1.02830439]
[1737044551133,1.0446138,712.6,710.83,1.47688307]
[1737044551331,1.0446138,712.6,710.84,1.47688307]
[1737044551633,1.0446138,712.67,710.85,1.47688307]
[1737044551834,0.28063873,712.66,710.86,1.47688307]
[1737044552026,1.46699782,712.59,710.87,1.47688307]
[1737044552224,1.46699782,712.59,710.88,1.47688307]
[1737044552424,1.46699782,712.59,710.71,1.02830439]
[1737044552425,1.46699782,712.59,710.89,1.47690408]
[1737044552630,1.46699782,712.59,710.9,1.47690408]
[1737044552830,1.46699782,712.59,710.91,1.47690408]
[1737044553027,1.46699782,712.59,710.92,1.47690408]
[1737044553232,1.46699782,712.59,710.93,1.47690408]
[1737044553432,1.46699782,712.59,710.94,1.47690408]
[1737044553628,1.46699782,712.59,710.95,1.47690408]
[1737044553832,1.46699782,712.59,710.96,1.47690408]
[1737044554134,1.46699782,712.59,710.97,1.218622]
[1737044554334,1.46699782,712.59,710.98,1.218622]
[1737044554529,1.46699782,712.59,710.99,1.218622]
[1737044554734,1.46699782,712.59,711.0,1.218622]
[1737044555034,1.46699782,712.59,711.01,1.218622]
[1737044555234,1.46699782,712.59,711.02,1.218622]
[1737044555433,1.46699782,712.59,711.03,1.218622]
[1737044555637,1.46699782,712.59,711.04,1.218622]
[1737044555934,1.46699782,712.59,711.05,1.218622]
[1737044556233,1.46699782,712.59,711.06,1.218622]
[1737044556434,1.46699782,712.59,711.07,1.218622]
[1737044556634,2.51161162,712.59,711.08,1.218622]
[1737044556833,2.51161162,712.59,711.09,1.218622]
[1737044557032,2.51161162,712.59,711.1,1.218622]
[1737044557230,2.51161162,712.59,711.11,1.218622]
[1737044557435,2.51161162,712.59,711.12,1.218622]
[1737044557635,2.51161162,712.59,711.13,1.218622]
[1737044557936,1.0446138,712.52,711.14,1.218622]
[1737044558129,1.0446138,712.52,711.15,1.218622]
[1737044558333,1.0446138,712.52,711.16,1.218622]
[1737044558533,1.0446138,712.52,711.17,1.218622]
[1737044558735,1.0446138,712.52,711.18,1.218622]
[1737044558935,1.0446138,712.52,711.19,1.218622]
[1737044559236,2.51161162,712.59,711.2,1.218622]
[1737044559435,2.51161162,712.59,711.21,1.218622]
[1737044559634,2.51161162,712.59,711.22,1.218622]
[1737044559835,2.51161162,712.59,711.23,1.218622]
[1737044560031,1.0446138,712.5,711.24,1.218622]
[1737044560235,1.0446138,712.5,710.7,1.02830439]
[1737044560236,1.0446138,712.5,711.25,1.218622]
[1737044560431,1.0446138,712.5,711.26,1.218622]
[1737044560635,1.0446138,712.5,711.27,1.218622]
[1737044560835,1.0446138,712.5,711.28,1.218622]
[1737044561138,1.46699782,712.59,711.29,1.218622]
[1737044561437,1.46699782,712.59,711.3,1.218622]
[1737044561636,1.46699782,712.59,711.31,1.218622]
[1737044561833,1.46699782,712.59,711.32,1.218622]
[1737044562038,1.46699782,712.59,711.33,1.218622]
[1737044562337,1.46699782,712.59,711.34,1.218622]
[1737044562539,1.46699782,712.59,711.35,1.218622]
[1737044562837,1.46699782,712.59,711.36,1.218622]
[1737044563038,1.46699782,712.59,711.37,1.218622]
[1737044563338,1.46699782,712.59,711.38,1.218622]
[1737044563542,1.46699782,712.59,711.39,1.218622]
[1737044563739,1.46699782,712.59,711.4,1.218622]
[1737044563939,1.46699782,712.59,711.41,1.218622]
[1737044564241,1.46699782,712.59,710.73,1.02830439]
[1737044564439,1.46699782,712.59,710.74,1.21804836]
[1737044564637,1.46699782,712.59,710.75,1.21804836]
[1737044564941,1.46699782,712.59,710.76,1.47628985]
[1737044565139,1.46699782,712.59,710.77,2.50459424]
[1737044565337,1.46699782,712.59,710.78,1.47628985]
[1737044565539,1.46699782,712.59,710.79,1.47628985]
[1737044565741,1.46699782,712.59,710.8,1.47628985]
[1737044565942,1.46699782,712.59,710.81,1.47628985]
[1737044566145,1.46699782,712.59,710.82,1.47628985]
[1737044566343,1.46699782,712.59,710.83,1.47628985]
[1737044566540,1.46699782,712.59,710.84,1.47629221]
[1737044566743,1.46699782,712.59,710.81,1.02830439]
[1737044566744,1.46699782,712.59,710.85,1.47629221]
[1737044566944,1.46699782,712.59,710.86,1.47629221]
[1737044567145,1.46699782,712.59,710.87,1.47629221]
[1737044567346,1.46699782,712.59,710.88,1.476286]
[1737044567549,1.46699782,712.59,710.89,1.476286]
[1737044567745,1.46699782,712.59,710.9,1.476286]
[1737044567946,1.46699782,712.59,710.91,1.476286]
[1737044568148,1.46699782,712.59,710.92,1.476286]
[1737044568347,1.46699782,712.59,710.93,1.476286]
[1737044568549,1.46699782,712.59,710.83,1.02830439]
[1737044568550,1.46699782,712.59,710.94,1.476286]
[1737044568748,1.46699782,712.59,710.95,1.476286]
[1737044569050,1.46699782,712.59,710.96,1.75759577]
[1737044569353,1.46699782,712.59,710.97,1.476286]
[1737044569547,1.46699782,712.59,710.98,1.476286]
[1737044569747,1.46699782,712.59,710.99,1.7575839]
[1737044569949,1.0446138,712.49,711.0,1.476286]
[1737044570251,1.0446138,712.49,711.01,1.476286]
[1737044570450,1.0446138,712.49,711.02,1.476286]
[1737044570751,1.0446138,712.49,710.99,0.2812979]
[1737044570752,1.46693083,712.48,711.03,1.476286]
[1737044571046,1.46693083,712.48,710.99,0.2812979]
[1737044571047,1.46693083,712.48,711.04,1.476286]
[1737044571349,1.0446138,712.44,711.05,1.476286]
[1737044571551,1.0446138,712.44,711.06,1.476286]
[1737044571849,1.0446138,712.44,711.07,1.21804836]
[1737044572050,1.0446138,712.44,711.08,1.21804836]
[1737044572251,1.0446138,712.44,711.09,1.21804836]
[1737044572449,1.0446138,712.42,711.1,1.21804836]
[1737044572751,1.0446138,712.42,711.11,1.21804836]
[1737044572952,1.0446138,712.42,711.12,1.21804836]
[1737044573147,1.0446138,712.42,711.13,1.21804836]
[1737044573451,1.0446138,712.42,711.14,1.21804836]
[1737044573648,1.0446138,712.39,711.15,1.21804836]
[1737044573847,1.0446138,712.39,711.16,1.21804836]
[1737044574052,1.0446138,712.39,711.17,1.21804836]
[1737044574253,1.0446138,712.39,711.18,1.21804836]
[1737044574448,1.0446138,712.39,711.19,1.21804836]
[1737044574647,1.0446138,712.39,711.2,1.21804836]
[1737044574953,1.0446138,712.39,711.21,1.21804836]
[1737044575151,1.0446138,712.39,711.22,1.21804836]
[1737044575349,1.0446138,712.39,711.23,1.21804836]
[1737044575652,1.0446138,712.39,711.24,1.21804836]
[1737044575851,1.0446138,712.39,711.25,1.21804836]
[1737044576051,1.0446138,712.42,711.26,1.21804836]
[1737044576252,1.0446138,712.42,711.27,1.21804836]
[1737044576451,1.0446138,712.42,711.28,1.21804836]
[1737044576754,1.0446138,712.42,711.29,1.21804836]
[1737044576954,1.0446138,712.42,711.3,1.21804836]
[1737044577253,1.0446138,712.42,711.31,1.21804836]
[1737044577446,1.0446138,712.42,711.32,1.21804836]
[1737044577650,1.0446138,712.42,711.33,1.21804836]
[1737044577851,1.0446138,712.4,711.34,1.21804836]
[1737044578052,1.0446138,712.4,711.35,1.21804836]
[1737044578255,1.0446138,712.4,711.36,1.21804836]
[1737044578554,1.0446138,712.4,711.37,1.21804836]
[1737044578758,1.0446138,712.4,711.38,1.21804836]
[1737044578953,1.46693083,712.48,710.99,0.2812979]
[1737044578954,1.0446138,712.35,711.39,1.21804836]
[1737044579153,1.0446138,712.35,711.4,1.21804836]
[1737044579353,1.0446138,712.35,710.99,0.2812979]
[1737044579354,1.0446138,712.35,711.41,1.21804836]
[1737044579554,1.0446138,712.35,711.42,1.21804836]
[1737044579751,1.0446138,712.35,710.99,0.2812979]
[1737044579752,1.0446138,712.35,711.43,1.21804836]
[1737044580052,1.0446138,712.35,710.99,0.2812979]
[1737044580053,1.0446138,712.41,711.44,1.21804836]
[1737044580252,1.0446138,712.41,711.45,1.21804836]
[1737044580557,1.0446138,712.41,711.46,1.21804836]
[1737044580856,1.0446138,712.41,711.47,1.21804836]
[1737044581057,1.0446138,712.41,711.48,1.21804836]
[1737044581357,1.0446138,712.45,711.49,1.21804836]
[1737044581556,1.0446138,712.45,711.5,1.21804836]
[1737044581756,1.0446138,712.45,711.51,1.21804836]
[1737044581959,1.0446138,712.45,711.52,1.21804836]
[1737044582161,1.0446138,712.46,711.53,1.21804836]
[1737044582358,1.0446138,712.46,711.54,1.21804836]
[1737044582557,1.0446138,712.46,711.55,1.21804836]
[1737044582758,1.0446138,712.46,711.56,1.21804836]
[1737044583053,1.0446138,712.46,711.57,1.21804836]
[1737044583258,1.0446138,712.46,711.58,1.21804836]
[1737044583456,1.0446138,712.46,711.59,1.21804836]
[1737044583659,1.0446138,712.46,711.6,0.46846124]
[1737044583855,1.0446138,712.46,711.61,0.46846124]
[1737044584061,1.46666292,712.59,711.62,0.46908248]
[1737044584062,1.0446138,712.2,711.62,0.46908248]
[1737044584262,1.0446138,712.2,711.14,1.02830439]
[1737044584560,1.0446138,712.2,711.15,1.47819608]
[1737044584762,1.0446138,712.2,711.16,1.21993201]
[1737044584963,1.0446138,712.23,711.17,1.21993201]
[1737044585259,1.0446138,712.23,711.18,1.21993201]
[1737044585460,1.0446138,712.23,711.19,1.21993201]
[1737044585660,1.0446138,712.23,711.2,1.21993201]
[1737044585858,1.0446138,712.23,711.21,1.21993201]
[1737044586059,1.0446138,712.23,711.22,1.21993201]
[1737044586355,1.0446138,712.34,711.23,1.22088414]
[1737044586562,1.0446138,712.34,711.24,1.22088414]
[1737044586756,1.0446138,712.34,711.25,1.22088414]
[1737044586953,1.0446138,712.34,711.26,1.22088414]
[1737044587159,1.0446138,712.34,711.27,1.22088414]
[1737044587359,1.0446138,712.34,711.28,1.22088414]
[1737044587555,1.0446138,712.29,711.29,1.22088414]
[1737044587860,1.0446138,712.29,710.99,0.2812979]
[1737044587861,1.0446138,712.29,711.3,1.22088414]
[1737044588159,1.0446138,712.29,711.31,1.22088414]
[1737044588362,1.0446138,712.29,711.32,1.22166639]
[1737044588561,1.0446138,712.26,711.33,1.22166639]
[1737044588858,1.0446138,712.26,711.34,1.22166639]
[1737044589161,1.0446138,712.26,711.35,1.22166639]
[1737044589356,1.0446138,712.26,711.36,1.22166639]
[1737044589663,1.25353656,712.92,710.99,0.2812979]
[1737044589664,1.0446138,712.25,711.37,1.22166639]
[1737044589865,1.0446138,712.25,711.38,1.22166639]
[1737044590061,1.0446138,712.25,711.39,1.22166639]
[1737044590259,1.0446138,712.25,711.4,1.22166639]
[1737044590461,1.0446138,712.25,711.41,1.22166639]
[1737044590661,1.0446138,712.4,711.42,1.22166639]
[1737044590960,1.0446138,712.4,711.43,1.22166639]
[1737044591160,1.0446138,712.4,711.44,1.22166639]
[1737044591362,1.0446138,712.4,711.45,1.22166639]
[1737044591563,1.0446138,712.4,710.99,0.2812979]
[1737044591564,1.0446138,712.4,711.46,1.22166639]
[1737044591868,1.0446138,712.41,711.47,1.22166639]
[1737044592060,1.0446138,712.41,711.48,1.22166639]
[1737044592358,1.0446138,712.41,711.49,1.22166639]
[1737044592563,1.0446138,712.41,711.5,1.22166639]
[1737044592864,1.0446138,712.42,711.51,1.22166639]
[1737044593059,1.0446138,712.42,711.52,1.22166639]
[1737044593265,1.0446138,712.42,711.53,1.22166639]
[1737044593466,1.0446138,712.42,711.54,1.22166639]
[1737044593667,1.0446138,712.42,711.55,1.22166639]
[1737044593963,2.13275319,713.32,710.99,0.2812979]
[1737044593964,1.0446138,712.4,711.56,1.22166639]
[1737044594166,1.0446138,712.4,711.57,1.22166639]
[1737044594359,1.0446138,712.4,711.58,1.22166639]
[1737044594563,1.0446138,712.4,711.59,1.22166639]
[1737044594758,1.0446138,712.4,711.6,1.22166639]
[1737044594955,1.0446138,712.4,710.99,0.2812979]
[1737044594956,1.0446138,712.4,711.61,1.22166639]
[1737044595159,1.0446138,712.37,711.62,1.22399666]